fUST/lending_fUST_20250115
["ID","MTS","AMOUNT","RATE_DAILY","PERIOD"]
[348952795,1736890236305,-500.0,0.00021917,3]
[348952796,1736890236314,-608.32,0.00021917,3]
[348952797,1736890236324,-500.0,0.00021917,3]
[348952798,1736890236334,-500.0,0.00021917,3]
[348952799,1736890236343,-794.32,0.00021917,3]
[348952800,1736890236353,-690.16,0.00021917,3]
[348952801,1736890236362,-501.14427851,0.00021917,3]
[348952802,1736890236371,-500.0,0.00021917,3]
[348952803,1736890236380,-500.0,0.00021917,3]
[348952804,1736890236505,-500.0,0.00021917,3]
[348952805,1736890236515,-500.0,0.00021917,3]
[348952806,1736890236524,-500.0,0.00021917,3]
[348952807,1736890236534,-500.0,0.00021917,3]
[348952808,1736890236543,-500.0,0.00021917,3]
[348952809,1736890236552,-500.0,0.00021917,3]
[348952810,1736890236561,-151.0,0.00021917,2]
[348952811,1736890236572,-500.0,0.00021917,3]
[348952812,1736890236581,-549.82,0.00021917,3]
[348952813,1736890236590,-500.0,0.00021917,3]
[348952814,1736890236599,-219.5755841,0.00021917,3]
[348952815,1736890236609,-500.0,0.00021917,3]
[348952816,1736890236618,-151.0,0.00021917,2]
[348952817,1736890236628,-500.0,0.00021917,3]
[348952818,1736890236638,-500.0,0.00021917,3]
[348952819,1736890236647,-593.86953685,0.00021917,3]
[348952820,1736890236656,-500.0,0.00021917,3]
[348952821,1736890236666,-500.0,0.00021917,3]
[348952822,1736890236675,-500.0,0.00021917,3]
[348952823,1736890236686,-500.0,0.00021917,3]
[348952824,1736890236695,-308.37,0.00021917,3]
[348952825,1736890236706,-500.0,0.00021917,3]
[348952826,1736890236715,-500.0,0.00021917,3]
[348952827,1736890236725,-500.0,0.00021917,3]
[348952828,1736890236735,-500.0,0.00021917,3]
[348952829,1736890236744,-500.0,0.00021917,3]
[348952830,1736890236754,-716.35,0.00021917,3]
[348952831,1736890236765,-500.0,0.00021917,3]
[348952832,1736890236774,-500.0,0.00021917,3]
[348952833,1736890236784,-500.0,0.00021917,3]
[348952834,1736890236793,-174.1792968,0.00021945,2]
[348952835,1736890236802,-1893.58068512,0.00021954,3]
[348952836,1736890236811,-504.32260518,0.00021973,2]
[348952837,1736890236820,-538.03476906,0.00021973,2]
[348952838,1736890236830,-2107.56,0.00022,15]
[348952839,1736890236840,-154.0,0.00022,2]
[348952840,1736890236849,-1000.0,0.00022051,2]
[348952841,1736890236859,-500.0,0.00022054,3]
[348952842,1736890236868,-500.0,0.00022054,3]
[348952843,1736890236877,-500.0,0.00022054,3]
[348952844,1736890236886,-529.28322512,0.00022054,3]
[348952845,1736890236895,-500.0,0.00022054,3]
[348952846,1736890236905,-500.0,0.00022054,3]
[348952847,1736890236916,-500.0,0.00022054,3]
[348952848,1736890236925,-500.0,0.00022054,3]
[348952849,1736890236936,-500.0,0.00022054,3]
[348952850,1736890236948,-508.14053131,0.00022054,3]
[348952851,1736890236958,-500.0,0.00022054,3]
[348952852,1736890236968,-534.12,0.00022054,3]
[348952853,1736890236979,-500.0,0.00022054,3]
[348952854,1736890236990,-603.42,0.00022054,3]
[348952855,1736890236999,-500.0,0.00022054,3]
[348952856,1736890237009,-495.68670623,0.00022054,3]
[348952857,1736890237018,-537.91,0.00022054,3]
[348952858,1736890237029,-506.34909692,0.00022054,3]
[348952859,1736890237039,-500.0,0.00022054,3]
[348952860,1736890237048,-500.0,0.00022054,3]
[348952861,1736890237058,-282.964868,0.00022054,7]
[348952862,1736890237068,-500.0,0.00022054,3]
[348952863,1736890237078,-500.0,0.00022054,3]
[348952864,1736890237087,-500.0,0.00022054,3]
[348952865,1736890237098,-564.32,0.00022054,3]
[348952866,1736890237112,-500.0,0.00022054,3]
[348952867,1736890237122,-507.98881454,0.00022054,3]
[348952868,1736890237131,-500.0,0.00022054,3]
[348952869,1736890237141,-500.0,0.00022054,3]
[348952870,1736890237151,-500.0,0.00022054,3]
[348952871,1736890237162,-500.0,0.00022054,3]
[348952872,1736890237171,-500.0,0.00022054,3]
[348952873,1736890237181,-4133.49,0.00022054,3]
[348952874,1736890237191,-4133.49,0.00022054,3]
[348952875,1736890237200,-500.0,0.00022054,3]
[348952876,1736890237210,-529.49,0.00022054,3]
[348952877,1736890237220,-500.0,0.00022054,3]
[348952878,1736890237229,-500.0,0.00022054,3]
[348952879,1736890237239,-500.0,0.00022054,3]
[348952880,1736890237248,-500.0,0.00022054,3]
[348952881,1736890237258,-500.0,0.00022054,3]
[348952882,1736890237267,-500.0,0.00022054,3]
[348952883,1736890237276,-500.0,0.00022054,3]
[348952884,1736890237286,-500.0,0.00022054,3]
[348952885,1736890237297,-55.87942308,0.00022054,3]
[348952937,1736890238297,-379.52856752,0.00021917,3]
[348953154,1736890240356,-120.47143248,0.00021917,3]
[348953156,1736890240366,-500.0,0.00021917,3]
[348953158,1736890240377,-500.0,0.00021917,3]
[348953160,1736890240386,-500.0,0.00021917,3]
[348953162,1736890240395,-500.0,0.00021917,3]
[348953164,1736890240404,-500.0,0.00021917,3]
[348953166,1736890240414,-503.52057692,0.00022054,3]
[348953168,1736890240424,-500.0,0.00022054,3]
[348953170,1736890240433,-500.0,0.00022054,3]
[348953172,1736890240445,-151.0,0.00022054,7]
[348953174,1736890240455,-151.0,0.00022054,7]
[348953176,1736890240464,-589.60117337,0.00022054,3]
[348953178,1736890240473,-438.91064305,0.00022054,3]
[348953180,1736890240482,-500.0,0.00022054,3]
[348953182,1736890240492,-500.0,0.00022054,3]
[348953184,1736890240501,-2451.06,0.00022054,3]
[348953186,1736890240510,-151.0,0.00022054,7]
[348953188,1736890240520,-151.0,0.00022054,7]
[348953190,1736890240530,-500.0,0.00022054,3]
[348953192,1736890240539,-522.18235512,0.00022054,3]
[348953194,1736890240548,-500.0,0.00022054,3]
[348953196,1736890240558,-500.0,0.00022054,3]
[348953197,1736890240567,-677.01,0.00022054,2]
[348953199,1736890240576,-500.0,0.00022054,3]
[348953201,1736890240586,-500.0,0.00022054,3]
[348953204,1736890240595,-500.0,0.00022054,3]
[348953206,1736890240605,-500.0,0.00022054,3]
[348953210,1736890240615,-500.0,0.00022054,3]
[348953212,1736890240648,-500.0,0.00022054,3]
[348953214,1736890240658,-500.0,0.00022054,3]
[348953216,1736890240667,-510.40336188,0.00022054,3]
[348953218,1736890240677,-16646.17,0.00022054,3]
[348953220,1736890240688,-500.0,0.00022054,3]
[348953222,1736890240697,-596.22,0.00022054,3]
[348953224,1736890240707,-500.0,0.00022054,3]
[348953226,1736890240716,-500.0,0.00022054,3]
[348953228,1736890240726,-500.0,0.00022054,3]
[348953230,1736890240736,-500.0,0.00022054,3]
[348953232,1736890240745,-943.83,0.00022054,3]
[348953234,1736890240755,-500.0,0.00022054,3]
[348953236,1736890240764,-1800.19,0.00022054,3]
[348953238,1736890240774,-6175.24,0.00022054,2]
[348953240,1736890240783,-429.12571244,0.00022054,3]
[348953242,1736890240792,-965.58,0.00022054,3]
[348953244,1736890240801,-500.0,0.00022054,3]
[348953246,1736890240811,-561.36,0.00022054,3]
[348953248,1736890240820,-500.0,0.00022054,3]
[348953250,1736890240829,-1482.05,0.00022054,3]
[348953252,1736890240838,-794.94,0.00022054,3]
[348953254,1736890240848,-500.0,0.00022054,3]
[348953256,1736890240857,-2295.3,0.00022054,3]
[348953258,1736890240866,-497.67765565,0.00022054,3]
[348953260,1736890240876,-500.0,0.00022054,3]
[348953262,1736890240885,-382.74070476,0.00022054,3]
[348953264,1736890240895,-500.0,0.00022054,3]
[348953266,1736890240904,-500.0,0.00022054,3]
[348953268,1736890240913,-500.0,0.00022054,3]
[348953270,1736890240922,-500.0,0.00022054,3]
[348953272,1736890240931,-500.0,0.00022054,3]
[348953274,1736890240943,-856.24,0.00022054,3]
[348953276,1736890240954,-500.0,0.00022054,3]
[348953278,1736890240964,-500.0,0.00022054,3]
[348953280,1736890240973,-500.0,0.00022054,3]
[348953282,1736890240983,-500.0,0.00022054,3]
[348953284,1736890240993,-500.0,0.00022054,3]
[348953286,1736890241002,-500.0,0.00022054,3]
[348953288,1736890241011,-500.0,0.00022054,3]
[348953290,1736890241022,-530.0329691,0.00022054,3]
[348953292,1736890241031,-500.0,0.00022054,3]
[348953294,1736890241041,-500.0,0.00022054,3]
[348953296,1736890241050,-500.0,0.00022054,3]
[348953298,1736890241060,-500.0,0.00022054,3]
[348953300,1736890241071,-500.0,0.00022054,3]
[348953302,1736890241080,-500.0,0.00022054,3]
[348953304,1736890241090,-500.0,0.00022054,3]
[348953306,1736890241099,-1874.49,0.00022054,3]
[348953308,1736890241108,-500.0,0.00022054,3]
[348953310,1736890241117,-500.0,0.00022054,3]
[348953312,1736890241126,-675.78,0.00022054,3]
[348953314,1736890241135,-500.0,0.00022054,3]
[348953316,1736890241145,-500.0,0.00022054,3]
[348953318,1736890241154,-1563.43,0.00022054,3]
[348953320,1736890241163,-767.7,0.00022054,3]
[348953322,1736890241172,-500.0,0.00022054,3]
[348953324,1736890241181,-500.0,0.00022054,3]
[348953326,1736890241192,-841.15,0.00022054,3]
[348953328,1736890241201,-1710.25,0.00022054,3]
[348953330,1736890241211,-563.29,0.00022054,3]
[348953332,1736890241220,-176.79,0.00022054,3]
[348953334,1736890241229,-500.0,0.00022054,3]
[348953336,1736890241238,-3498.58,0.00022054,3]
[348953338,1736890241247,-500.0,0.00022054,3]
[348953340,1736890241256,-608.32,0.00022054,3]
[348953342,1736890241266,-500.0,0.00022054,3]
[348953344,1736890241275,-794.32,0.00022054,3]
[348953346,1736890241284,-690.16,0.00022054,3]
[348953348,1736890241293,-500.0,0.00022054,3]
[348953350,1736890241302,-500.0,0.00022054,3]
[348953352,1736890241311,-500.0,0.00022054,3]
[348953354,1736890241320,-500.0,0.00022054,3]
[348953356,1736890241328,-549.82,0.00022054,3]
[348953358,1736890241339,-507.88257055,0.00022054,3]
[348953360,1736890241348,-500.0,0.00022054,3]
[348953362,1736890241358,-504.27372914,0.00022054,3]
[348953364,1736890241367,-500.0,0.00022054,3]
[348953366,1736890241377,-500.0,0.00022054,3]
[348953368,1736890241387,-716.35,0.00022054,3]
[348953370,1736890241397,-500.0,0.00022054,3]
[348953372,1736890241406,-500.0,0.00022054,3]
[348953374,1736890241415,-500.0,0.00022054,3]
[348953377,1736890241425,-500.0,0.00022054,3]
[348953379,1736890241435,-500.0,0.00022054,3]
[348953381,1736890241445,-1000.0,0.0002215,2]
[348953383,1736890241454,-204.22154537,0.0002215,2]
[348953385,1736890241465,-500.0,0.00022191,3]
[348953387,1736890241475,-500.0,0.00022191,3]
[348953389,1736890241485,-500.0,0.00022191,3]
[348953391,1736890241495,-500.0,0.00022191,3]
[348953393,1736890241504,-500.0,0.00022191,3]
[348953395,1736890241514,-413.07192016,0.00022191,3]
[348953397,1736890241524,-603.42,0.00022191,3]
[348953399,1736890241534,-226.3147415,0.00022191,3]
[348953401,1736890241544,-537.91,0.00022191,3]
[348953403,1736890241555,-500.0,0.00022191,3]
[348953405,1736890241564,-500.0,0.00022191,3]
[348953407,1736890241574,-500.0,0.00022191,3]
[348953409,1736890241583,-500.0,0.00022191,3]
[348953411,1736890241593,-500.0,0.00022191,3]
[348953412,1736890241602,-564.32,0.00022191,3]
[348953413,1736890241612,-500.0,0.00022191,3]
[348953414,1736890241621,-500.0,0.00022191,3]
[348953415,1736890241630,-410.32,0.00022191,3]
[348953416,1736890241640,-500.0,0.00022191,3]
[348953417,1736890241649,-500.0,0.00022191,3]
[348953418,1736890241659,-524.11739906,0.00022191,3]
[348953419,1736890241668,-4133.49,0.00022191,3]
[348953420,1736890241677,-4133.49,0.00022191,3]
[348953421,1736890241687,-500.0,0.00022191,3]
[348953422,1736890241696,-500.0,0.00022191,3]
[348953423,1736890241706,-500.0,0.00022191,3]
[348953424,1736890241715,-500.0,0.00022191,3]
[348953425,1736890241725,-500.0,0.00022191,3]
[348953426,1736890241734,-225.68162664,0.00022191,3]
[348953427,1736890241743,-429.4158668,0.00022191,3]
[348953428,1736890241753,-467.66904166,0.00022191,3]
[348953429,1736890241762,-151.0,0.00022191,7]
[348953430,1736890241772,-500.0,0.00022191,3]
[348953431,1736890241781,-500.0,0.00022191,3]
[348953432,1736890241791,-2451.06,0.00022191,3]
[348953434,1736890241801,-206.40301121,0.00022191,3]
[348953436,1736890241810,-500.0,0.00022191,3]
[348953438,1736890241819,-677.01,0.00022191,2]
[348953440,1736890241829,-571.67464166,0.00022191,3]
[348953442,1736890241838,-500.0,0.00022191,3]
[348953444,1736890241848,-500.0,0.00022191,3]
[348953446,1736890241858,-500.0,0.00022191,3]
[348953448,1736890241867,-16646.17,0.00022191,3]
[348953450,1736890241878,-596.22,0.00022191,3]
[348953452,1736890241887,-500.0,0.00022191,3]
[348953454,1736890241897,-500.0,0.00022191,3]
[348953456,1736890241906,-500.0,0.00022191,3]
[348953458,1736890241917,-500.0,0.00022191,3]
[348953460,1736890241927,-943.83,0.00022191,3]
[348953462,1736890241937,-1800.19,0.00022191,3]
[348953464,1736890241950,-6175.24,0.00022191,2]
[348953466,1736890241960,-965.58,0.00022191,3]
[348953468,1736890241969,-500.0,0.00022191,3]
[348953470,1736890241978,-561.36,0.00022191,3]
[348953472,1736890241988,-1482.05,0.00022191,3]
[348953474,1736890241999,-794.94,0.00022191,3]
[348953476,1736890242009,-2295.3,0.00022191,3]
[348953478,1736890242019,-216.04,0.00022191,3]
[348953480,1736890242029,-500.0,0.00022191,3]
[348953482,1736890242038,-500.0,0.00022191,3]
[348953484,1736890242049,-856.24,0.00022191,3]
[348953486,1736890242058,-362.06096306,0.00022191,3]
[348953488,1736890242068,-283.63062171,0.00022191,3]
[348953490,1736890242077,-500.0,0.00022191,3]
[348953492,1736890242087,-500.0,0.00022191,3]
[348953494,1736890242096,-500.0,0.00022191,3]
[348953496,1736890242106,-500.0,0.00022191,3]
[348953498,1736890242115,-500.0,0.00022191,3]
[348953500,1736890242125,-500.0,0.00022191,3]
[348953502,1736890242135,-500.0,0.00022191,3]
[348953504,1736890242144,-1874.49,0.00022191,3]
[348953506,1736890242154,-500.0,0.00022191,3]
[348953508,1736890242164,-675.78,0.00022191,3]
[348953510,1736890242173,-500.0,0.00022191,3]
[348953512,1736890242183,-500.0,0.00022191,3]
[348953514,1736890242193,-1563.43,0.00022191,3]
[348953516,1736890242203,-767.7,0.00022191,3]
[348953518,1736890242213,-500.0,0.00022191,3]
[348953520,1736890242223,-841.15,0.00022191,3]
[348953522,1736890242233,-1710.25,0.00022191,3]
[348953524,1736890242243,-563.29,0.00022191,3]
[348953526,1736890242253,-608.32,0.00022191,3]
[348953528,1736890242263,-3498.58,0.00022191,3]
[348953531,1736890242273,-500.0,0.00022191,3]
[348953533,1736890242283,-794.32,0.00022191,3]
[348953535,1736890242293,-690.16,0.00022191,3]
[348953537,1736890242302,-500.0,0.00022191,3]
[348953539,1736890242312,-506.91872714,0.00022191,3]
[348953541,1736890242322,-500.0,0.00022191,3]
[348953543,1736890242331,-500.0,0.00022191,3]
[348953544,1736890242340,-549.82,0.00022191,3]
[348953547,1736890242350,-500.0,0.00022191,3]
[348953549,1736890242360,-500.0,0.00022191,3]
[348953551,1736890242370,-500.0,0.00022191,3]
[348953553,1736890242384,-716.35,0.00022191,3]
[348953555,1736890242394,-500.0,0.00022191,3]
[348953557,1736890242405,-500.0,0.00022191,3]
[348953559,1736890242417,-537.39,0.00022191,3]
[348953561,1736890242428,-500.0,0.00022191,3]
[348953563,1736890242440,-500.0,0.00022191,3]
[348953565,1736890242451,-154.0,0.00022192,2]
[348953567,1736890242462,-163.59718528,0.00022193,2]
[348953569,1736890242472,-620.0,0.000222,2]
[348953571,1736890242483,-1000.0,0.00022208,2]
[348953573,1736890242493,-200.51285701,0.00022274,2]
[348953575,1736890242503,-1000.0,0.00022286,2]
[348953577,1736890242512,-2761.67701987,0.000223,2]
[348953579,1736890242522,-1000.0,0.00022312,2]
[348953581,1736890242532,-160.0,0.00022327,2]
[348953583,1736890242541,-8232.01831367,0.00022328,5]
[348953677,1736890243469,-1153.47298975,0.00022328,5]
[348953968,1736890246329,-500.0,0.00021917,3]
[348953970,1736890246339,-500.0,0.00021917,3]
[348953972,1736890246349,-500.0,0.00022054,3]
[348953974,1736890246361,-4785.56969031,0.00022328,5]
[348953977,1736890246371,-1914.50427888,0.00022328,5]
[348953991,1736890246477,-181.13263371,0.00022328,5]
[348955382,1736890713847,400.0,0.00013973,2]
[348955383,1736891235133,-297.08659694,0.00017982,2]
[348955384,1736891235157,-459.69572676,0.00018064,2]
[348955392,1736891357188,-741.57219537,0.00017982,2]
[348955463,1736891432759,-1092.79018246,0.000189,2]
[348955466,1736891432771,-249.86,0.00019178,7]
[348955468,1736891432781,-150.0,0.00019487,2]
[348955470,1736891432790,-129.57143649,0.00020002,2]
[348955474,1736891432816,-174.10987751,0.00020002,2]
[348955476,1736891432825,-167.192672,0.00020183,2]
[348955478,1736891432835,-117.87583154,0.00020329,2]
[348955654,1736891438310,-182.12416846,0.00020329,2]
[348955656,1736891438320,-12067.2018053,0.0002033,2]
[348955659,1736891438332,-2546.743889,0.0002033,2]
[348955664,1736891438372,-4744.08005639,0.0002033,2]
[348955666,1736891438387,-289.42361865,0.0002033,2]
[348955668,1736891438400,-711.34262683,0.0002033,2]
[348955686,1736891438557,-749.27877335,0.0002033,2]
[348955733,1736891440492,-353.1278318,0.0002033,2]
[348955736,1736891440505,-401.35788478,0.0002033,2]
[348955747,1736891440604,-3037.4435139,0.0002033,2]
[348955748,1736891440615,-400.0,0.00020447,2]
[348955749,1736891440628,-528.053,0.0002121,2]
[348955750,1736891440638,-164.99847274,0.00021708,2]
[348955751,1736891440648,-154.71,0.00021717,2]
[348955752,1736891440658,-353.2648614,0.00021808,2]
[348955753,1736891440668,-353.3916328,0.00021808,2]
[348955754,1736891440678,-353.3916328,0.00021808,2]
[348955755,1736891440687,-353.0113186,0.00021808,2]
[348955756,1736891440697,-353.2648614,0.00021808,2]
[348955757,1736891440707,-353.3916328,0.00021808,2]
[348955758,1736891440717,-353.3916328,0.00021808,2]
[348955759,1736891440727,-303.5587295,0.00021808,2]
[348955760,1736891440736,-182.32714222,0.00021817,2]
[348955761,1736891440747,-182.32714222,0.00021886,2]
[348955762,1736891440759,-206.60962638,0.000219,2]
[348955763,1736891440769,-14209.61903806,0.00021901,2]
[348955764,1736891440779,-304.45799917,0.00021916,2]
[348955765,1736891440789,-351.417,0.00021916,2]
[348955766,1736891440798,-500.24047302,0.00021917,3]
[348955767,1736891440808,-320.79362068,0.00021917,3]
[348955768,1736891440818,-500.81546027,0.00021917,3]
[348955769,1736891440841,-500.0,0.00021917,3]
[348955770,1736891440852,-500.0,0.00021917,3]
[348955771,1736891440862,-500.0,0.00021917,3]
[348955772,1736891440872,-500.0,0.00021917,3]
[348955773,1736891440882,-500.0,0.00021917,3]
[348955774,1736891440893,-500.0,0.00021917,3]
[348955775,1736891440904,-500.0,0.00021917,3]
[348955776,1736891440914,-500.0,0.00021917,3]
[348955777,1736891440925,-500.0,0.00021917,3]
[348955778,1736891440936,-500.0,0.00021917,3]
[348955779,1736891440947,-500.0,0.00021917,3]
[348955780,1736891440958,-500.0,0.00021917,3]
[348955781,1736891440968,-500.0,0.00021917,3]
[348955782,1736891440978,-500.0,0.00021917,3]
[348955783,1736891440988,-500.0,0.00021917,3]
[348955784,1736891440998,-457.42814686,0.00021917,3]
[348955785,1736891441008,-500.0,0.00021917,3]
[348955786,1736891441019,-500.0,0.00021917,3]
[348955787,1736891441029,-500.0,0.00021917,3]
[348955788,1736891441040,-539.41859522,0.00021917,3]
[348955789,1736891441051,-500.0,0.00021917,3]
[348955790,1736891441061,-500.0,0.00021917,3]
[348955791,1736891441072,-500.0,0.00021917,3]
[348955792,1736891441083,-500.0,0.00021917,3]
[348955793,1736891441093,-250.25334083,0.00021917,3]
[348955794,1736891441103,-500.0,0.00021917,3]
[348955795,1736891441113,-500.0,0.00021917,3]
[348955796,1736891441124,-502.42699489,0.00021917,3]
[348955797,1736891441134,-266.66009241,0.00021917,3]
[348955798,1736891441145,-500.0,0.00021917,3]
[348955799,1736891441155,-500.0,0.00021917,3]
[348955800,1736891441165,-500.4546498,0.00021917,3]
[348955801,1736891441176,-500.0,0.00021917,3]
[348955802,1736891441186,-500.0,0.00021917,3]
[348955803,1736891441196,-500.0,0.00021917,3]
[348955804,1736891441206,-500.0,0.00021917,3]
[348955805,1736891441215,-500.0,0.00021917,3]
[348955806,1736891441225,-500.0,0.00021917,3]
[348955807,1736891441235,-500.0,0.00021917,3]
[348955808,1736891441245,-501.21567034,0.00021917,3]
[348955809,1736891441255,-500.0,0.00021917,3]
[348955810,1736891441265,-500.0,0.00021917,3]
[348955811,1736891441275,-500.0,0.00021917,3]
[348955812,1736891441285,-500.0,0.00021917,3]
[348955813,1736891441295,-500.0,0.00021917,3]
[348955814,1736891441306,-500.0,0.00021917,3]
[348955815,1736891441316,-500.0,0.00021917,3]
[348955816,1736891441326,-500.0,0.00021917,3]
[348955817,1736891441336,-500.26633432,0.00021917,3]
[348955818,1736891441346,-500.0,0.00021917,3]
[348955819,1736891441357,-500.0,0.00021917,3]
[348955820,1736891441366,-500.0,0.00021917,3]
[348955821,1736891441379,-207.87793788,0.00021917,3]
[348955822,1736891441391,-500.0,0.00021917,3]
[348955823,1736891441401,-500.0,0.00021917,3]
[348955824,1736891441411,-500.0,0.00021917,3]
[348955825,1736891441430,-500.0,0.00021917,3]
[348955826,1736891441440,-500.51672209,0.00021917,3]
[348955827,1736891441450,-500.0,0.00021917,3]
[348955828,1736891441459,-500.0,0.00021917,3]
[348955829,1736891441470,-500.0,0.00021917,3]
[348955830,1736891441480,-500.0,0.00021917,3]
[348955831,1736891441491,-500.0,0.00021917,3]
[348955832,1736891441502,-500.0,0.00021917,3]
[348955833,1736891441511,-500.0,0.00021917,3]
[348955834,1736891441522,-602.77191686,0.00021917,3]
[348955835,1736891441532,-500.0,0.00021917,3]
[348955836,1736891441542,-500.0,0.00021917,3]
[348955837,1736891441552,-500.0,0.00021917,3]
[348955838,1736891441562,-500.0,0.00021917,3]
[348955839,1736891441571,-500.0,0.00021917,3]
[348955840,1736891441581,-500.0,0.00021917,3]
[348955841,1736891441591,-500.0,0.00021917,3]
[348955842,1736891441601,-500.0,0.00021917,3]
[348955843,1736891441612,-500.0,0.00021917,3]
[348955844,1736891441621,-500.0,0.00021917,3]
[348955845,1736891441631,-500.0,0.00021917,3]
[348955846,1736891441641,-500.87443661,0.00021917,3]
[348955847,1736891441651,-500.0,0.00021917,3]
[348955848,1736891441662,-500.0,0.00021917,3]
[348955849,1736891441671,-500.79219314,0.00021917,3]
[348955850,1736891441682,-500.0,0.00021917,3]
[348955851,1736891441693,-501.125226,0.00021917,3]
[348955852,1736891441704,-500.0,0.00021917,3]
[348955853,1736891441714,-500.0,0.00021917,3]
[348955854,1736891441724,-500.0,0.00021917,3]
[348955855,1736891441734,-428.44822366,0.00021917,3]
[348955856,1736891441744,-500.66782575,0.00021917,3]
[348955857,1736891441754,-500.0,0.00021917,3]
[348955858,1736891441765,-500.0,0.00021917,3]
[348955859,1736891441775,-500.0,0.00021917,3]
[348955860,1736891441786,-500.0,0.00021917,3]
[348955861,1736891441797,-500.0,0.00021917,3]
[348955862,1736891441807,-500.0,0.00021917,3]
[348955863,1736891441818,-500.0,0.00021917,3]
[348955864,1736891441827,-500.0,0.00021917,3]
[348955865,1736891441837,-500.0,0.00021917,3]
[348955866,1736891441847,-613.46842821,0.00021917,3]
[348955867,1736891441858,-500.0,0.00021917,3]
[348955868,1736891441868,-500.0,0.00021917,3]
[348955869,1736891441878,-500.0,0.00021917,3]
[348955870,1736891441889,-514.94251189,0.00021917,3]
[348955871,1736891441899,-500.0,0.00021917,3]
[348955872,1736891441909,-500.0,0.00021917,3]
[348955873,1736891441919,-438.5570408,0.00021917,3]
[348955874,1736891441928,-500.0,0.00021917,3]
[348955875,1736891441938,-500.0,0.00021917,3]
[348955876,1736891441948,-500.96339009,0.00021917,3]
[348955877,1736891441957,-500.0,0.00021917,3]
[348955878,1736891441967,-500.0,0.00021917,3]
[348955879,1736891441977,-500.0,0.00021917,3]
[348955880,1736891441986,-501.05903073,0.00021917,3]
[348955881,1736891441996,-500.0,0.00021917,3]
[348955882,1736891442006,-500.0,0.00021917,3]
[348955883,1736891442016,-500.0,0.00021917,3]
[348955884,1736891442026,-500.0,0.00021917,3]
[348955885,1736891442036,-500.0,0.00021917,3]
[348955886,1736891442046,-500.0,0.00021917,3]
[348955887,1736891442056,-500.0,0.00021917,3]
[348955888,1736891442066,-500.0,0.00021917,3]
[348955889,1736891442076,-500.0,0.00021917,3]
[348955890,1736891442086,-500.0,0.00021917,3]
[348955891,1736891442096,-500.0,0.00021917,3]
[348955892,1736891442106,-500.0,0.00021917,3]
[348955893,1736891442115,-500.0,0.00021917,3]
[348955894,1736891442125,-500.0,0.00021917,3]
[348955895,1736891442136,-500.0,0.00021917,3]
[348955896,1736891442147,-500.0,0.00021917,3]
[348955897,1736891442157,-151.0,0.00021917,2]
[348955898,1736891442167,-500.0,0.00021917,3]
[348955899,1736891442177,-500.0,0.00021917,3]
[348955900,1736891442188,-500.0,0.00021917,3]
[348955901,1736891442197,-500.0,0.00021917,3]
[348955902,1736891442207,-500.0,0.00021917,3]
[348955903,1736891442217,-500.0,0.00021917,3]